[Event "*** Titled Tuesday Blitz"]
[Site "Chess.com"]
[Date "2021.02.09"]
[Round "8"]
[White "Dedic8"]
[Black "Alexander_Zubov"]
[Result "0-1"]
[WhiteElo "2821"]
[BlackElo "2980"]
[TimeControl "180+1"]
[EndTime "11:29:15 PST"]
[Termination "Alexander_Zubov won by resignation"]

1. e4 {[%clk 0:03:00.9]} 1... c5 {[%clk 0:02:57.6]} 2. Nf3 {[%clk 0:03:00.9]}
2... e6 {[%clk 0:02:56.9]} 3. d4 {[%clk 0:03:01.2]} 3... cxd4 {[%clk 0:02:57.3]}
4. Nxd4 {[%clk 0:03:02.1]} 4... a6 {[%clk 0:02:57.9]} 5. Bd3 {[%clk 0:03:02.5]}
5... Bc5 {[%clk 0:02:57.4]} 6. Nb3 {[%clk 0:02:59.8]} 6... Be7 {[%clk
0:02:57.2]} 7. O-O {[%clk 0:02:55.7]} 7... d6 {[%clk 0:02:56.7]} 8. c4 {[%clk
0:02:55.9]} 8... Nf6 {[%clk 0:02:56.4]} 9. Nc3 {[%clk 0:02:56.3]} 9... O-O
{[%clk 0:02:56]} 10. Be3 {[%clk 0:02:55]} 10... b6 {[%clk 0:02:52.7]} 11. f3
{[%clk 0:02:52.8]} 11... Nc6 {[%clk 0:02:50.2]} 12. Qd2 {[%clk 0:02:44.4]} 12...
Bb7 {[%clk 0:02:48.9]} 13. Qf2 {[%clk 0:02:39.5]} 13... Nd7 {[%clk 0:02:48.4]}
14. Rad1 {[%clk 0:02:34.3]} 14... Rc8 {[%clk 0:02:46.6]} 15. f4 {[%clk
0:02:03.1]} 15... Nb4 {[%clk 0:02:34.1]} 16. Be2 {[%clk 0:01:54.8]} 16... Qc7
{[%clk 0:02:33.5]} 17. a3 {[%clk 0:01:49.9]} 17... Nc6 {[%clk 0:02:33.4]} 18.
Nd4 {[%clk 0:01:48.2]} 18... Qb8 {[%clk 0:01:59.9]} 19. Qg3 {[%clk 0:01:40]}
19... Bf6 {[%clk 0:01:54.3]} 20. e5 {[%clk 0:01:12.7]} 20... Nxd4 {[%clk
0:01:35]} 21. Rxd4 {[%clk 0:01:13.6]} 21... Nxe5 {[%clk 0:01:21.9]} 22. fxe5
{[%clk 0:01:11.7]} 22... Bxe5 {[%clk 0:01:22.8]} 23. Qg4 {[%clk 0:01:00.7]}
23... f5 {[%clk 0:01:14]} 24. Qh3 {[%clk 0:00:51.3]} 24... Bxd4 {[%clk
0:01:13.7]} 25. Bxd4 {[%clk 0:00:52.2]} 25... e5 {[%clk 0:01:13.4]} 26. Bf2
{[%clk 0:00:46.1]} 26... Kh8 {[%clk 0:01:09.8]} 27. Rd1 {[%clk 0:00:46.1]} 27...
b5 {[%clk 0:00:56.4]} 28. cxb5 {[%clk 0:00:39.7]} 28... axb5 {[%clk 0:00:56.5]}
29. Bxb5 {[%clk 0:00:40.3]} 29... d5 {[%clk 0:00:42.5]} 30. Nxd5 {[%clk
0:00:35.9]} 30... Rfd8 {[%clk 0:00:28.1]} 31. Nc3 {[%clk 0:00:20.1]} 31... Rxd1+
{[%clk 0:00:24.2]} 32. Nxd1 {[%clk 0:00:21]} 32... Bxg2 {[%clk 0:00:22.7]} 33.
Kxg2 {[%clk 0:00:21.3]} 33... Qxb5 {[%clk 0:00:21.1]} 34. Qxf5 {[%clk 0:00:22]}
34... Qd5+ {[%clk 0:00:20.4]} 35. Qf3 {[%clk 0:00:22.4]} 35... e4 {[%clk
0:00:19.8]} 36. Qe3 {[%clk 0:00:18.4]} 36... Qxd1 {[%clk 0:00:18.3]} 37. Qxe4
{[%clk 0:00:18.9]} 37... h6 {[%clk 0:00:17.1]} 38. a4 {[%clk 0:00:17.5]} 38...
Rf8 {[%clk 0:00:15.4]} 39. a5 {[%clk 0:00:16.1]} 39... Qd2 {[%clk 0:00:15]} 0-1

[Event "*** Titled Tuesday Blitz"]
[Site "Chess.com"]
[Date "2021.02.09"]
[Round "8"]
[White "csati17"]
[Black "Alex-11211"]
[Result "1-0"]
[WhiteElo "2576"]
[BlackElo "2417"]
[TimeControl "180+1"]
[EndTime "11:29:15 PST"]
[Termination "csati17 won by resignation"]

1. c4 {[%clk 0:03:00.9]} 1... g6 {[%clk 0:02:59.9]} 2. g3 {[%clk 0:03:00.6]}
2... Bg7 {[%clk 0:03:00.8]} 3. Bg2 {[%clk 0:03:01.1]} 3... c5 {[%clk 0:03:01.7]}
4. Nc3 {[%clk 0:03:01.7]} 4... Nc6 {[%clk 0:03:02.3]} 5. e4 {[%clk 0:03:02.3]}
5... e6 {[%clk 0:03:02.4]} 6. Nge2 {[%clk 0:03:02.8]} 6... Nge7 {[%clk 0:03:03]}
7. O-O {[%clk 0:03:03.3]} 7... O-O {[%clk 0:03:03.2]} 8. Rb1 {[%clk 0:03:02.6]}
8... b6 {[%clk 0:02:57.6]} 9. a3 {[%clk 0:03:01.9]} 9... Bb7 {[%clk 0:02:57.5]}
10. b4 {[%clk 0:03:01.3]} 10... d6 {[%clk 0:02:58.1]} 11. d3 {[%clk 0:02:59.9]}
11... Qd7 {[%clk 0:02:51.8]} 12. Be3 {[%clk 0:02:50.4]} 12... Nd4 {[%clk
0:02:38.8]} 13. Qd2 {[%clk 0:02:50.6]} 13... Nec6 {[%clk 0:02:33.9]} 14. f4
{[%clk 0:02:44]} 14... f5 {[%clk 0:02:26.6]} 15. Kh1 {[%clk 0:02:04.9]} 15...
Rad8 {[%clk 0:02:17.7]} 16. h4 {[%clk 0:01:52.6]} 16... Nxe2 {[%clk 0:01:59.5]}
17. Nxe2 {[%clk 0:01:52.5]} 17... Nd4 {[%clk 0:02:00.4]} 18. Nxd4 {[%clk
0:01:36.5]} 18... Bxd4 {[%clk 0:01:59.8]} 19. Bg1 {[%clk 0:01:37.2]} 19... e5
{[%clk 0:01:37.2]} 20. Bxd4 {[%clk 0:01:04]} 20... cxd4 {[%clk 0:01:35.5]} 21.
Kh2 {[%clk 0:01:01.8]} 21... fxe4 {[%clk 0:01:16.5]} 22. dxe4 {[%clk 0:00:58.2]}
22... Rc8 {[%clk 0:01:14.7]} 23. Rbc1 {[%clk 0:00:57.8]} 23... Ba6 {[%clk
0:00:43.4]} 24. Bh3 {[%clk 0:00:41.1]} 24... Qe7 {[%clk 0:00:33.4]} 25. Bxc8
{[%clk 0:00:39.9]} 25... Rxc8 {[%clk 0:00:34.3]} 26. f5 {[%clk 0:00:33.3]} 26...
Bxc4 {[%clk 0:00:30.1]} 27. fxg6 {[%clk 0:00:31]} 27... hxg6 {[%clk 0:00:31]}
28. Qh6 {[%clk 0:00:26.5]} 28... Qg7 {[%clk 0:00:29.3]} 29. Qg5 {[%clk
0:00:24.6]} 29... b5 {[%clk 0:00:13.1]} 30. Rf6 {[%clk 0:00:24.6]} 30... Kh7
{[%clk 0:00:12.6]} 31. h5 {[%clk 0:00:25]} 31... gxh5 {[%clk 0:00:09.8]} 32.
Qxh5+ {[%clk 0:00:24.7]} 32... Kg8 {[%clk 0:00:10.4]} 33. Rg6 {[%clk 0:00:25.2]}
33... Rc7 {[%clk 0:00:10.8]} 34. Rc2 {[%clk 0:00:21.6]} 34... d3 {[%clk
0:00:07.2]} 35. Rf2 {[%clk 0:00:20.1]} 35... d2 {[%clk 0:00:04.9]} 36. Rxg7+
{[%clk 0:00:19.7]} 36... Rxg7 {[%clk 0:00:04.5]} 37. Qe8+ {[%clk 0:00:19.7]}
37... Kh7 {[%clk 0:00:05.1]} 38. Rxd2 {[%clk 0:00:19.8]} 38... Rg6 {[%clk
0:00:04]} 39. Qe7+ {[%clk 0:00:18.9]} 39... Kh6 {[%clk 0:00:04.2]} 40. Rxd6
{[%clk 0:00:19]} 1-0

[Event "*** Titled Tuesday Blitz"]
[Site "Chess.com"]
[Date "2021.02.09"]
[Round "8"]
[White "goldihouse"]
[Black "MergenKakabaev"]
[Result "1-0"]
[WhiteElo "2547"]
[BlackElo "2404"]
[TimeControl "180+1"]
[EndTime "11:29:16 PST"]
[Termination "goldihouse won by resignation"]

1. c4 {[%clk 0:03:00.9]} 1... Nf6 {[%clk 0:02:59.3]} 2. g3 {[%clk 0:03:01.3]}
2... c6 {[%clk 0:02:56.7]} 3. Nf3 {[%clk 0:03:01.2]} 3... d5 {[%clk 0:02:57.1]}
4. Bg2 {[%clk 0:03:02.1]} 4... e6 {[%clk 0:02:56]} 5. O-O {[%clk 0:03:02.2]}
5... Bd6 {[%clk 0:02:56.1]} 6. b3 {[%clk 0:03:02.5]} 6... O-O {[%clk 0:02:56.2]}
7. Nc3 {[%clk 0:03:03]} 7... b6 {[%clk 0:02:56.6]} 8. d3 {[%clk 0:03:00.1]} 8...
Bb7 {[%clk 0:02:56.8]} 9. e4 {[%clk 0:02:59.3]} 9... Nbd7 {[%clk 0:02:56]} 10.
Bb2 {[%clk 0:02:57.5]} 10... dxe4 {[%clk 0:02:55.8]} 11. dxe4 {[%clk 0:02:57.3]}
11... Ne5 {[%clk 0:02:52.1]} 12. Qe2 {[%clk 0:02:32.5]} 12... Nxf3+ {[%clk
0:02:49.1]} 13. Bxf3 {[%clk 0:02:32.7]} 13... Be5 {[%clk 0:02:46.3]} 14. Rad1
{[%clk 0:02:32.9]} 14... Qe7 {[%clk 0:02:43.7]} 15. Na4 {[%clk 0:02:27.9]} 15...
Bxb2 {[%clk 0:02:42.7]} 16. Nxb2 {[%clk 0:02:28.8]} 16... e5 {[%clk 0:02:40.3]}
17. Rd2 {[%clk 0:02:25.5]} 17... c5 {[%clk 0:02:33.7]} 18. Rfd1 {[%clk
0:02:26.4]} 18... Rad8 {[%clk 0:02:33]} 19. Na4 {[%clk 0:02:17.6]} 19... Rd4
{[%clk 0:02:28.5]} 20. Nc3 {[%clk 0:02:17.4]} 20... Rfd8 {[%clk 0:02:27.3]} 21.
Bg2 {[%clk 0:02:17.1]} 21... Bc6 {[%clk 0:02:16.1]} 22. Nd5 {[%clk 0:02:15.4]}
22... Bxd5 {[%clk 0:02:15]} 23. exd5 {[%clk 0:02:16.3]} 23... Kf8 {[%clk
0:01:57.4]} 24. Re1 {[%clk 0:02:14.2]} 24... Re8 {[%clk 0:01:41.4]} 25. Rd3
{[%clk 0:02:11.7]} 25... Rxd3 {[%clk 0:01:11.3]} 26. Qxd3 {[%clk 0:02:12.6]}
26... e4 {[%clk 0:01:06.9]} 27. Qc3 {[%clk 0:02:02.9]} 27... Qe5 {[%clk
0:01:05.5]} 28. Qxe5 {[%clk 0:01:58.7]} 28... Rxe5 {[%clk 0:01:06.4]} 29. Bh3
{[%clk 0:01:59]} 29... Ne8 {[%clk 0:00:58.8]} 30. f4 {[%clk 0:01:55]} 30... Re7
{[%clk 0:00:57]} 31. Kf2 {[%clk 0:01:45.2]} 31... Nd6 {[%clk 0:00:55.7]} 32. g4
{[%clk 0:01:44.5]} 32... f5 {[%clk 0:00:48.9]} 33. gxf5 {[%clk 0:01:43.8]} 33...
Kf7 {[%clk 0:00:48]} 34. Ke3 {[%clk 0:01:43.9]} 34... Kf6 {[%clk 0:00:46.8]} 35.
Rg1 {[%clk 0:01:43.7]} 35... a6 {[%clk 0:00:37.3]} 36. Rc1 {[%clk 0:01:32.6]}
36... Rc7 {[%clk 0:00:32.8]} 37. Bg2 {[%clk 0:01:28.3]} 37... Nxf5+ {[%clk
0:00:17.1]} 38. Kxe4 {[%clk 0:01:28.7]} 38... Re7+ {[%clk 0:00:16.8]} 39. Kd3
{[%clk 0:01:29]} 39... Nd4 {[%clk 0:00:11.5]} 40. Be4 {[%clk 0:01:27.1]} 40...
g6 {[%clk 0:00:10.6]} 41. b4 {[%clk 0:01:24.6]} 41... Rb7 {[%clk 0:00:08]} 42.
Rb1 {[%clk 0:01:23.9]} 42... Nf5 {[%clk 0:00:07.1]} 43. bxc5 {[%clk 0:01:23.4]}
43... b5 {[%clk 0:00:06.4]} 44. cxb5 {[%clk 0:01:20.7]} 44... axb5 {[%clk
0:00:06.2]} 45. c6 {[%clk 0:01:19.5]} 45... Ra7 {[%clk 0:00:06.1]} 46. Bxf5
{[%clk 0:01:19.9]} 46... gxf5 {[%clk 0:00:05.2]} 47. d6 {[%clk 0:01:18.9]} 47...
Ke6 {[%clk 0:00:05]} 48. d7 {[%clk 0:01:16.1]} 48... Ra8 {[%clk 0:00:04.4]} 49.
Rxb5 {[%clk 0:01:16.1]} 49... Kd6 {[%clk 0:00:04.8]} 50. Rb6 {[%clk 0:01:06.8]}
50... Kc7 {[%clk 0:00:04.9]} 51. Rb4 {[%clk 0:01:03.9]} 51... Kxc6 {[%clk
0:00:05.2]} 52. Rd4 {[%clk 0:01:04.5]} 52... Kc7 {[%clk 0:00:03.1]} 53. d8=Q+
{[%clk 0:01:04.1]} 53... Rxd8 {[%clk 0:00:02.8]} 54. Rxd8 {[%clk 0:01:05]} 54...
Kxd8 {[%clk 0:00:03.7]} 55. Kd4 {[%clk 0:01:05.3]} 55... Kd7 {[%clk 0:00:03.7]}
56. Ke5 {[%clk 0:01:06.2]} 1-0

[Event "*** Titled Tuesday Blitz"]
[Site "Chess.com"]
[Date "2021.02.09"]
[Round "8"]
[White "alexrustemov"]
[Black "dozer80"]
[Result "0-1"]
[WhiteElo "2747"]
[BlackElo "2633"]
[TimeControl "180+1"]
[EndTime "11:29:17 PST"]
[Termination "dozer80 won by checkmate"]

1. d4 {[%clk 0:03:00.9]} 1... d5 {[%clk 0:02:59.9]} 2. c4 {[%clk 0:03:00.6]}
2... c6 {[%clk 0:02:59.9]} 3. Nc3 {[%clk 0:03:00.6]} 3... Nf6 {[%clk 0:03:00.1]}
4. e3 {[%clk 0:03:01.1]} 4... a6 {[%clk 0:02:51.6]} 5. Nf3 {[%clk 0:02:57.1]}
5... Bf5 {[%clk 0:02:48.5]} 6. Qb3 {[%clk 0:02:42.1]} 6... Ra7 {[%clk
0:02:47.7]} 7. cxd5 {[%clk 0:02:28.5]} 7... cxd5 {[%clk 0:02:47.6]} 8. Bd2
{[%clk 0:02:26.9]} 8... e6 {[%clk 0:02:45.4]} 9. Ne5 {[%clk 0:02:25.5]} 9...
Nfd7 {[%clk 0:02:38.7]} 10. Qa4 {[%clk 0:02:18.5]} 10... Be7 {[%clk 0:02:27.5]}
11. Bb5 {[%clk 0:01:53.3]} 11... f6 {[%clk 0:02:24.4]} 12. Nxd7 {[%clk
0:01:46.8]} 12... Nxd7 {[%clk 0:02:25.3]} 13. Rc1 {[%clk 0:01:43.8]} 13... b6
{[%clk 0:02:07.9]} 14. Bxa6 {[%clk 0:01:27.6]} 14... O-O {[%clk 0:01:33.9]} 15.
Nb5 {[%clk 0:01:23.5]} 15... Ra8 {[%clk 0:01:30.6]} 16. Nc7 {[%clk 0:01:18.9]}
16... Nc5 {[%clk 0:01:23.3]} 17. dxc5 {[%clk 0:01:10.9]} 17... Qxc7 {[%clk
0:01:23.2]} 18. cxb6 {[%clk 0:00:26.8]} 18... Qxb6 {[%clk 0:01:19.1]} 19. Rc6
{[%clk 0:00:27.4]} 19... Qxb2 {[%clk 0:01:18.6]} 20. Ke2 {[%clk 0:00:27.7]}
20... Rfb8 {[%clk 0:00:48]} 21. Rhc1 {[%clk 0:00:27.9]} 21... Bb4 {[%clk
0:00:42.1]} 22. Rd1 {[%clk 0:00:12.8]} 22... e5 {[%clk 0:00:25.1]} 23. f3 {[%clk
0:00:12.5]} 23... Bd7 {[%clk 0:00:23.9]} 24. Ke1 {[%clk 0:00:07.4]} 24... Bxd2+
{[%clk 0:00:21.1]} 25. Rxd2 {[%clk 0:00:08.3]} 25... Qa1+ {[%clk 0:00:21.2]} 26.
Ke2 {[%clk 0:00:08.5]} 26... Bxc6 {[%clk 0:00:11.9]} 27. Qxc6 {[%clk 0:00:09.4]}
27... Rd8 {[%clk 0:00:11.6]} 28. a4 {[%clk 0:00:05.7]} 28... d4 {[%clk
0:00:10.1]} 29. e4 {[%clk 0:00:04.5]} 29... Kh8 {[%clk 0:00:07.9]} 30. Bb5
{[%clk 0:00:03.6]} 30... Qa3 {[%clk 0:00:07.5]} 31. Qe6 {[%clk 0:00:03.1]} 31...
Qe3+ {[%clk 0:00:07.3]} 32. Kd1 {[%clk 0:00:03.7]} 32... d3 {[%clk 0:00:06.8]}
33. Bc4 {[%clk 0:00:01.5]} 33... Qg1# {[%clk 0:00:06.7]} 0-1

[Event "*** Titled Tuesday Blitz"]
[Site "Chess.com"]
[Date "2021.02.09"]
[Round "8"]
[White "m_ezat"]
[Black "jacky72"]
[Result "0-1"]
[WhiteElo "2557"]
[BlackElo "2705"]
[TimeControl "180+1"]
[EndTime "11:29:18 PST"]
[Termination "jacky72 won by resignation"]

1. d4 {[%clk 0:02:51.6]} 1... Nf6 {[%clk 0:02:58.9]} 2. c4 {[%clk 0:02:51.4]}
2... g6 {[%clk 0:02:59.4]} 3. Nc3 {[%clk 0:02:51.5]} 3... Bg7 {[%clk 0:03:00]}
4. e4 {[%clk 0:02:52.1]} 4... O-O {[%clk 0:03:00.9]} 5. Be2 {[%clk 0:02:52.4]}
5... d6 {[%clk 0:03:01.5]} 6. Bg5 {[%clk 0:02:52.9]} 6... Na6 {[%clk 0:02:59.8]}
7. Qd2 {[%clk 0:02:52.9]} 7... Qe8 {[%clk 0:02:59.6]} 8. h4 {[%clk 0:02:51.8]}
8... c5 {[%clk 0:02:58.6]} 9. d5 {[%clk 0:02:52.1]} 9... e6 {[%clk 0:02:58.9]}
10. h5 {[%clk 0:02:51.3]} 10... exd5 {[%clk 0:02:59.1]} 11. exd5 {[%clk
0:02:51.2]} 11... Ne4 {[%clk 0:02:56.1]} 12. Nxe4 {[%clk 0:02:51.2]} 12... Qxe4
{[%clk 0:02:57]} 13. Bh6 {[%clk 0:02:50.9]} 13... Qxg2 {[%clk 0:02:49.2]} 14.
Bf3 {[%clk 0:02:43.2]} 14... Re8+ {[%clk 0:02:49.1]} 15. Be3 {[%clk 0:02:43.1]}
15... Qg5 {[%clk 0:02:46.7]} 16. Kf1 {[%clk 0:02:38.9]} 16... Qf6 {[%clk
0:02:45.1]} 17. hxg6 {[%clk 0:02:38.6]} 17... fxg6 {[%clk 0:02:37.9]} 18. Kg2
{[%clk 0:02:24.2]} 18... Qxb2 {[%clk 0:02:34.1]} 19. Qxb2 {[%clk 0:02:23.5]}
19... Bxb2 {[%clk 0:02:35]} 20. Rb1 {[%clk 0:02:24]} 20... Bg7 {[%clk
0:02:35.6]} 21. Ne2 {[%clk 0:02:24.1]} 21... Nb4 {[%clk 0:02:30.2]} 22. a3
{[%clk 0:02:20.5]} 22... Nd3 {[%clk 0:02:30.5]} 23. Ng3 {[%clk 0:02:17.8]} 23...
Ne5 {[%clk 0:02:22.6]} 24. Be2 {[%clk 0:02:17.6]} 24... b6 {[%clk 0:02:17.3]}
25. a4 {[%clk 0:02:11.4]} 25... Ba6 {[%clk 0:02:11.5]} 26. Rhc1 {[%clk
0:02:11.9]} 26... h5 {[%clk 0:02:04.9]} 27. Ne4 {[%clk 0:02:09.2]} 27... Nf7
{[%clk 0:01:54.3]} 28. Bd3 {[%clk 0:02:06]} 28... Bc8 {[%clk 0:01:52.1]} 29. Ng3
{[%clk 0:01:47.5]} 29... Ne5 {[%clk 0:01:50.1]} 30. Be2 {[%clk 0:01:48.1]} 30...
Bg4 {[%clk 0:01:49.4]} 31. Bxg4 {[%clk 0:01:40.1]} 31... Nxg4 {[%clk 0:01:49.1]}
32. Bf4 {[%clk 0:01:40.7]} 32... Be5 {[%clk 0:01:48.6]} 33. Bg5 {[%clk
0:01:39.9]} 33... Rf8 {[%clk 0:01:48.4]} 34. Ne4 {[%clk 0:01:39.2]} 34... Rf5
{[%clk 0:01:45.5]} 35. f3 {[%clk 0:01:38.4]} 35... Nh2 {[%clk 0:01:37]} 36. f4
{[%clk 0:01:26.2]} 36... Bxf4 {[%clk 0:01:36.6]} 37. Bxf4 {[%clk 0:01:26.5]}
37... Rxf4 {[%clk 0:01:37.5]} 38. Nxd6 {[%clk 0:01:26.8]} 38... Ng4 {[%clk
0:01:36.2]} 39. Kg3 {[%clk 0:01:18.3]} 39... Raf8 {[%clk 0:01:30.4]} 40. Re1
{[%clk 0:01:14.3]} 40... Nf2 {[%clk 0:01:18.6]} 41. Re8 {[%clk 0:01:04.9]} 41...
Rg4+ {[%clk 0:01:17.1]} 42. Kh2 {[%clk 0:01:04.2]} 42... Rxe8 {[%clk 0:01:14.7]}
43. Nxe8 {[%clk 0:01:03.7]} 43... Rxc4 {[%clk 0:01:14.7]} 44. Rf1 {[%clk
0:01:01.5]} 44... Ng4+ {[%clk 0:01:14.1]} 45. Kg3 {[%clk 0:01:01.8]} 45... Ne3
{[%clk 0:01:09]} 46. Nf6+ {[%clk 0:00:57.2]} 46... Kg7 {[%clk 0:01:08.2]} 47.
Ne8+ {[%clk 0:00:56]} 47... Kh6 {[%clk 0:01:08.1]} 48. Rf7 {[%clk 0:00:52.9]}
48... Nxd5 {[%clk 0:01:02.4]} 49. Rxa7 {[%clk 0:00:52.5]} 49... Kg5 {[%clk
0:01:01.9]} 50. Nd6 {[%clk 0:00:51.9]} 50... Rc3+ {[%clk 0:01:01.9]} 51. Kf2
{[%clk 0:00:52.8]} 51... Kg4 {[%clk 0:00:55.8]} 52. Rg7 {[%clk 0:00:48.5]} 52...
Rc2+ {[%clk 0:00:55.6]} 53. Ke1 {[%clk 0:00:48.2]} 53... Kg5 {[%clk 0:00:47.7]}
54. Rd7 {[%clk 0:00:43.2]} 54... Ne3 {[%clk 0:00:39.2]} 55. Rb7 {[%clk
0:00:40.6]} 55... Kg4 {[%clk 0:00:36.8]} 56. Rxb6 {[%clk 0:00:39.4]} 56... Kf3
{[%clk 0:00:36.6]} 0-1

[Event "*** Titled Tuesday Blitz"]
[Site "Chess.com"]
[Date "2021.02.09"]
[Round "8"]
[White "kakorrhaphiophobie"]
[Black "Srisshhhtea"]
[Result "0-1"]
[WhiteElo "2326"]
[BlackElo "2500"]
[TimeControl "180+1"]
[EndTime "11:29:19 PST"]
[Termination "Srisshhhtea won on time"]

1. d4 {[%clk 0:02:54.6]} 1... d5 {[%clk 0:02:59.3]} 2. c4 {[%clk 0:02:54.2]}
2... e6 {[%clk 0:02:59.1]} 3. Nf3 {[%clk 0:02:53.9]} 3... Be7 {[%clk 0:02:58.6]}
4. Nc3 {[%clk 0:02:53.1]} 4... Nf6 {[%clk 0:02:58.8]} 5. Bf4 {[%clk 0:02:53.1]}
5... O-O {[%clk 0:02:57.3]} 6. e3 {[%clk 0:02:53.7]} 6... b6 {[%clk 0:02:53.8]}
7. cxd5 {[%clk 0:02:49.8]} 7... Nxd5 {[%clk 0:02:53.1]} 8. Nxd5 {[%clk
0:02:42.3]} 8... Qxd5 {[%clk 0:02:54]} 9. Bd3 {[%clk 0:02:41.5]} 9... Ba6 {[%clk
0:02:52.3]} 10. Bxc7 {[%clk 0:02:27.5]} 10... Bb4+ {[%clk 0:02:39]} 11. Ke2
{[%clk 0:02:24.1]} 11... Rc8 {[%clk 0:02:06.8]} 12. Bg3 {[%clk 0:02:16.9]} 12...
Bc4 {[%clk 0:01:57.8]} 13. Rc1 {[%clk 0:01:47]} 13... Nd7 {[%clk 0:01:47.5]} 14.
b3 {[%clk 0:01:39]} 14... Bxd3+ {[%clk 0:01:44.5]} 15. Qxd3 {[%clk 0:01:38.8]}
15... Qa5 {[%clk 0:01:40.6]} 16. Qb1 {[%clk 0:01:29.4]} 16... Qa6+ {[%clk
0:01:38]} 17. Kd1 {[%clk 0:00:43.9]} 17... Rxc1+ {[%clk 0:01:35.9]} 18. Kxc1
{[%clk 0:00:42.9]} 18... Rc8+ {[%clk 0:01:24.1]} 19. Kd1 {[%clk 0:00:42.7]}
19... Nf6 {[%clk 0:01:16.6]} 20. Nd2 {[%clk 0:00:31.4]} 20... Nd5 {[%clk
0:01:06.7]} 21. Qb2 {[%clk 0:00:19.6]} 21... Ba3 {[%clk 0:00:56.6]} 22. Qa1
{[%clk 0:00:15.1]} 22... Rc1+ {[%clk 0:00:44.2]} 23. Qxc1 {[%clk 0:00:13.6]}
23... Bxc1 {[%clk 0:00:45.1]} 24. Kxc1 {[%clk 0:00:14.1]} 24... Qxa2 {[%clk
0:00:44.7]} 25. Rf1 {[%clk 0:00:12.6]} 25... Nc3 {[%clk 0:00:43.7]} 26. h4
{[%clk 0:00:09.1]} 26... Nd5 {[%clk 0:00:41.6]} 27. Kd1 {[%clk 0:00:08.5]} 27...
Nc3+ {[%clk 0:00:35.5]} 28. Kc1 {[%clk 0:00:08.5]} 28... a5 {[%clk 0:00:33.2]}
29. h5 {[%clk 0:00:07.1]} 29... b5 {[%clk 0:00:33]} 30. h6 {[%clk 0:00:07]}
30... gxh6 {[%clk 0:00:33.1]} 31. Bd6 {[%clk 0:00:06.9]} 31... a4 {[%clk
0:00:31.2]} 32. bxa4 {[%clk 0:00:07]} 32... bxa4 {[%clk 0:00:31.8]} 33. e4
{[%clk 0:00:05.5]} 33... Nxe4 {[%clk 0:00:28.7]} 34. Nxe4 {[%clk 0:00:05.1]}
34... Qc4+ {[%clk 0:00:28.9]} 35. Kd2 {[%clk 0:00:04.6]} 35... Qxf1 {[%clk
0:00:29.2]} 36. Ke3 {[%clk 0:00:03.9]} 36... Qxg2 {[%clk 0:00:27.9]} 37. Nf6+
{[%clk 0:00:03.4]} 37... Kg7 {[%clk 0:00:27.7]} 38. Be5 {[%clk 0:00:04.1]} 38...
Qh3+ {[%clk 0:00:26.2]} 39. f3 {[%clk 0:00:03.4]} 39... Kg6 {[%clk 0:00:26.2]}
40. Ng8 {[%clk 0:00:01.7]} 40... Qh4 {[%clk 0:00:24]} 0-1

[Event "*** Titled Tuesday Blitz"]
[Site "Chess.com"]
[Date "2021.02.09"]
[Round "8"]
[White "MasterMK73"]
[Black "Noam_Vitenberg"]
[Result "0-1"]
[WhiteElo "2224"]
[BlackElo "2401"]
[TimeControl "180+1"]
[EndTime "11:29:19 PST"]
[Termination "Noam_Vitenberg won on time"]

1. e4 {[%clk 0:03:00.9]} 1... g6 {[%clk 0:02:54.7]} 2. d4 {[%clk 0:02:55.4]}
2... Bg7 {[%clk 0:00:28.2]} 3. g3 {[%clk 0:02:48.6]} 3... e6 {[%clk 0:00:23]} 4.
Bg2 {[%clk 0:02:47.7]} 4... Ne7 {[%clk 0:00:23.9]} 5. Ne2 {[%clk 0:02:44.9]}
5... d5 {[%clk 0:00:24.5]} 6. e5 {[%clk 0:02:42.3]} 6... O-O {[%clk 0:00:24.4]}
7. O-O {[%clk 0:02:40.9]} 7... c5 {[%clk 0:00:25]} 8. c3 {[%clk 0:02:39.8]} 8...
Nbc6 {[%clk 0:00:25.4]} 9. Na3 {[%clk 0:02:26.6]} 9... b6 {[%clk 0:00:25.2]} 10.
Nc2 {[%clk 0:02:21.9]} 10... Ba6 {[%clk 0:00:25]} 11. Re1 {[%clk 0:02:21.2]}
11... Bxe2 {[%clk 0:00:24.6]} 12. Rxe2 {[%clk 0:02:18.9]} 12... Rc8 {[%clk
0:00:25.5]} 13. Bf4 {[%clk 0:01:54.4]} 13... Qd7 {[%clk 0:00:25.6]} 14. Qd2
{[%clk 0:01:53.6]} 14... Rfd8 {[%clk 0:00:25.6]} 15. Bg5 {[%clk 0:01:45.2]}
15... cxd4 {[%clk 0:00:24.6]} 16. cxd4 {[%clk 0:01:44.6]} 16... Na5 {[%clk
0:00:25]} 17. Bf6 {[%clk 0:01:40.3]} 17... Nc4 {[%clk 0:00:20.7]} 18. Qg5 {[%clk
0:01:38.3]} 18... h6 {[%clk 0:00:19.4]} 19. Qf4 {[%clk 0:01:30.3]} 19... Nxb2
{[%clk 0:00:19.2]} 20. Bxg7 {[%clk 0:01:19.4]} 20... Kxg7 {[%clk 0:00:20.1]} 21.
Qf6+ {[%clk 0:01:19]} 21... Kg8 {[%clk 0:00:19.8]} 22. Ne3 {[%clk 0:01:18.9]}
22... Nc4 {[%clk 0:00:17.1]} 23. Ng4 {[%clk 0:01:12.7]} 23... Nf5 {[%clk
0:00:17.2]} 24. h4 {[%clk 0:01:00.8]} 24... h5 {[%clk 0:00:17.1]} 25. Ne3 {[%clk
0:00:30.7]} 25... Qe7 {[%clk 0:00:15.2]} 26. Nxf5 {[%clk 0:00:23]} 26... Qxf6
{[%clk 0:00:14.8]} 27. Nh6+ {[%clk 0:00:19.1]} 27... Kg7 {[%clk 0:00:14.7]} 28.
exf6+ {[%clk 0:00:18.8]} 28... Kxh6 {[%clk 0:00:15.2]} 29. g4 {[%clk 0:00:12.6]}
29... hxg4 {[%clk 0:00:13.6]} 30. f3 {[%clk 0:00:10.8]} 30... gxf3 {[%clk
0:00:12.7]} 31. Bxf3 {[%clk 0:00:10.7]} 31... Nd6 {[%clk 0:00:13.6]} 32. h5
{[%clk 0:00:09.4]} 32... g5 {[%clk 0:00:13.2]} 33. Bg4 {[%clk 0:00:05.2]} 33...
Rc4 {[%clk 0:00:12.1]} 34. Rd1 {[%clk 0:00:04.1]} 34... Ne4 {[%clk 0:00:11.7]}
0-1